[Event "*** SCC Grand Prix: Titled Tuesday Blitz"]
[Site "Chess.com"]
[Date "2020.07.21"]
[Round "2"]
[White "Gusarov91"]
[Black "JuliaEfremova"]
[Result "1-0"]
[WhiteElo "2631"]
[BlackElo "2324"]
[TimeControl "180+1"]
[EndTime "10:18:11 PDT"]
[Termination "Gusarov91 won by resignation"]

1. d4 {[%clk 0:03:00.9]} 1... e5 {[%clk 0:02:59.4]} 2. dxe5 {[%clk 0:03:00.2]}
2... Nc6 {[%clk 0:02:59.6]} 3. Nf3 {[%clk 0:03:00.5]} 3... Qe7 {[%clk
0:02:59.8]} 4. Qd5 {[%clk 0:02:59.9]} 4... f6 {[%clk 0:02:59.1]} 5. exf6 {[%clk
0:02:54.4]} 5... Nxf6 {[%clk 0:02:58.6]} 6. Qb3 {[%clk 0:02:54.3]} 6... Qb4+
{[%clk 0:02:56.7]} 7. Qxb4 {[%clk 0:02:53.7]} 7... Nxb4 {[%clk 0:02:57.6]} 8.
Na3 {[%clk 0:02:53.2]} 8... d5 {[%clk 0:02:53.9]} 9. c3 {[%clk 0:02:53.1]} 9...
Na6 {[%clk 0:02:51.1]} 10. Nb5 {[%clk 0:02:51.2]} 10... c6 {[%clk 0:02:48.8]}
11. Nbd4 {[%clk 0:02:51.1]} 11... Bd6 {[%clk 0:02:46.1]} 12. Bg5 {[%clk
0:02:42.7]} 12... O-O {[%clk 0:02:44.6]} 13. e3 {[%clk 0:02:38.3]} 13... Nc7
{[%clk 0:02:42.1]} 14. Bh4 {[%clk 0:02:35.7]} 14... Bg4 {[%clk 0:02:39.7]} 15.
h3 {[%clk 0:02:34.6]} 15... Bh5 {[%clk 0:02:38.8]} 16. Nf5 {[%clk 0:02:31.2]}
16... Bc5 {[%clk 0:02:28.1]} 17. g4 {[%clk 0:02:23.8]} 17... Bg6 {[%clk
0:02:15.3]} 18. N3d4 {[%clk 0:02:23.5]} 18... Rae8 {[%clk 0:02:10.3]} 19. O-O-O
{[%clk 0:02:18.2]} 19... Ne6 {[%clk 0:02:07]} 20. Bg2 {[%clk 0:02:08]} 20...
Nxd4 {[%clk 0:02:03]} 21. Nxd4 {[%clk 0:02:02.2]} 21... Ne4 {[%clk 0:01:59.9]}
22. Bxe4 {[%clk 0:02:00.8]} 22... Bxe4 {[%clk 0:01:59.3]} 23. Rhg1 {[%clk
0:02:00.6]} 23... g5 {[%clk 0:01:56.5]} 24. Bg3 {[%clk 0:01:59.1]} 24... h6
{[%clk 0:01:50]} 25. Kd2 {[%clk 0:01:47.7]} 25... Rf7 {[%clk 0:01:46.8]} 26. f4
{[%clk 0:01:44.8]} 26... gxf4 {[%clk 0:01:43.4]} 27. Bxf4 {[%clk 0:01:44.8]}
27... Kh7 {[%clk 0:01:41.9]} 28. Rdf1 {[%clk 0:01:44]} 28... Bxd4 {[%clk
0:01:33.7]} 29. cxd4 {[%clk 0:01:41.8]} 29... Bg6 {[%clk 0:01:27.4]} 30. h4
{[%clk 0:01:40.1]} 30... Be4 {[%clk 0:01:19.7]} 31. b4 {[%clk 0:01:33.5]} 31...
Rg8 {[%clk 0:01:15.6]} 32. Rf2 {[%clk 0:01:33]} 32... Rgf8 {[%clk 0:01:14.7]}
33. g5 {[%clk 0:01:20.2]} 33... h5 {[%clk 0:01:11.6]} 34. Rc1 {[%clk 0:01:19.7]}
34... a6 {[%clk 0:01:08.4]} 35. a4 {[%clk 0:01:19.4]} 35... Kg6 {[%clk
0:01:05.1]} 36. Rff1 {[%clk 0:01:17.4]} 36... Ra8 {[%clk 0:01:00]} 37. Bd6
{[%clk 0:01:15.3]} 37... Bf5 {[%clk 0:00:46.9]} 38. Rf4 {[%clk 0:01:14.2]} 38...
Rd8 {[%clk 0:00:41]} 39. Be5 {[%clk 0:01:12.1]} 39... Rc8 {[%clk 0:00:38.7]} 40.
Rcf1 {[%clk 0:01:10.5]} 40... Rcf8 {[%clk 0:00:38.7]} 41. Bf6 {[%clk 0:01:10.3]}
41... Be4 {[%clk 0:00:35.2]} 42. Kc3 {[%clk 0:01:09.6]} 42... Rc8 {[%clk
0:00:33.4]} 43. Kb3 {[%clk 0:01:07.1]} 43... b5 {[%clk 0:00:33.4]} 44. Rc1
{[%clk 0:01:05.9]} 44... Bd3 {[%clk 0:00:31.1]} 45. Kc3 {[%clk 0:01:03.7]} 45...
Bc4 {[%clk 0:00:31.1]} 46. axb5 {[%clk 0:01:03.7]} 46... cxb5 {[%clk 0:00:30.6]}
47. Kd2 {[%clk 0:01:03.5]} 47... Re8 {[%clk 0:00:29.1]} 48. Ra1 {[%clk
0:01:01.2]} 48... Ra8 {[%clk 0:00:28.8]} 49. Ke1 {[%clk 0:01:00.4]} 49... Rfa7
{[%clk 0:00:27.1]} 50. Be5 {[%clk 0:00:58.7]} 50... Rf7 {[%clk 0:00:26.7]} 51.
Rf6+ {[%clk 0:00:54.5]} 51... Rxf6 {[%clk 0:00:25.4]} 52. gxf6 {[%clk 0:00:55]}
52... Kf7 {[%clk 0:00:21.5]} 53. Kf2 {[%clk 0:00:54.2]} 53... Bd3 {[%clk
0:00:20.2]} 54. Rc1 {[%clk 0:00:53]} 54... Bc4 {[%clk 0:00:19.7]} 55. Kf3 {[%clk
0:00:51.6]} 55... Rg8 {[%clk 0:00:19.6]} 56. Ra1 {[%clk 0:00:51.4]} 56... Ra8
{[%clk 0:00:19.6]} 57. Kf4 {[%clk 0:00:51.3]} 57... Kg6 {[%clk 0:00:18.5]} 58.
Rg1+ {[%clk 0:00:50.9]} 58... Kh6 {[%clk 0:00:16.1]} 59. f7 {[%clk 0:00:49]}
59... Rf8 {[%clk 0:00:15.9]} 60. Bg7+ {[%clk 0:00:49.1]} 1-0

[Event "*** SCC Grand Prix: Titled Tuesday Blitz"]
[Site "Chess.com"]
[Date "2020.07.21"]
[Round "2"]
[White "pooh2012"]
[Black "FMOlexandrProhorov"]
[Result "1-0"]
[WhiteElo "2409"]
[BlackElo "2135"]
[TimeControl "180+1"]
[EndTime "10:18:14 PDT"]
[Termination "pooh2012 won by resignation"]

1. d4 {[%clk 0:02:39.3]} 1... Nf6 {[%clk 0:02:58]} 2. Nc3 {[%clk 0:02:38.1]}
2... d6 {[%clk 0:02:51.3]} 3. f3 {[%clk 0:02:32.4]} 3... e5 {[%clk 0:02:48]} 4.
dxe5 {[%clk 0:02:30.6]} 4... dxe5 {[%clk 0:02:48.1]} 5. Qxd8+ {[%clk 0:02:29.9]}
5... Kxd8 {[%clk 0:02:49]} 6. Bg5 {[%clk 0:02:30]} 6... Be7 {[%clk 0:02:43.3]}
7. O-O-O+ {[%clk 0:02:11]} 7... Nbd7 {[%clk 0:02:39.2]} 8. e4 {[%clk 0:01:58.4]}
8... c6 {[%clk 0:02:39.2]} 9. Bc4 {[%clk 0:01:41.9]} 9... Rf8 {[%clk 0:02:38]}
10. a4 {[%clk 0:01:28.2]} 10... Kc7 {[%clk 0:02:37.8]} 11. Nge2 {[%clk
0:01:26.5]} 11... Nc5 {[%clk 0:02:31.9]} 12. Bh4 {[%clk 0:01:14.2]} 12... Be6
{[%clk 0:02:29.1]} 13. Bxe6 {[%clk 0:01:04.9]} 13... Nxe6 {[%clk 0:02:30]} 14.
Bg3 {[%clk 0:01:04.6]} 14... Nc5 {[%clk 0:02:30.9]} 15. Bxe5+ {[%clk 0:01:03.7]}
15... Kc8 {[%clk 0:02:22.2]} 16. h4 {[%clk 0:00:45.3]} 16... Nfd7 {[%clk
0:02:02]} 17. Bd4 {[%clk 0:00:34.6]} 17... f6 {[%clk 0:02:00.6]} 18. h5 {[%clk
0:00:29.8]} 18... Ne5 {[%clk 0:01:59.7]} 19. h6 {[%clk 0:00:28.1]} 19... g6
{[%clk 0:01:59.2]} 20. Nf4 {[%clk 0:00:19.1]} 20... Re8 {[%clk 0:01:47.2]} 21.
Kb1 {[%clk 0:00:19]} 21... Bf8 {[%clk 0:01:44.1]} 22. Nfe2 {[%clk 0:00:11.8]}
22... Kc7 {[%clk 0:01:44]} 23. b3 {[%clk 0:00:10.1]} 23... a5 {[%clk 0:01:37]}
24. Be3 {[%clk 0:00:10.3]} 24... Rad8 {[%clk 0:01:35.9]} 25. Kb2 {[%clk
0:00:10.7]} 25... Ne6 {[%clk 0:01:32.1]} 26. Nf4 {[%clk 0:00:07.9]} 26... Bb4
{[%clk 0:01:18.2]} 27. Nxe6+ {[%clk 0:00:07.1]} 27... Rxe6 {[%clk 0:01:19.1]}
28. Rxd8 {[%clk 0:00:07]} 28... Kxd8 {[%clk 0:01:20]} 29. Rd1+ {[%clk
0:00:06.2]} 29... Kc7 {[%clk 0:01:20.4]} 30. Ne2 {[%clk 0:00:05.1]} 30... Bf8
{[%clk 0:01:15.7]} 31. Nf4 {[%clk 0:00:05.2]} 31... Rd6 {[%clk 0:01:12.3]} 32.
Rxd6 {[%clk 0:00:05.4]} 32... Bxd6 {[%clk 0:01:09]} 33. Nd3 {[%clk 0:00:06]}
33... Nf7 {[%clk 0:01:07.3]} 34. g4 {[%clk 0:00:05.1]} 34... Bf8 {[%clk
0:01:07]} 35. f4 {[%clk 0:00:04.7]} 35... Nxh6 {[%clk 0:01:03.1]} 36. g5 {[%clk
0:00:05.2]} 36... Ng4 {[%clk 0:01:01.9]} 37. Bd4 {[%clk 0:00:05.6]} 37... fxg5
{[%clk 0:00:55.9]} 38. fxg5 {[%clk 0:00:06.5]} 38... Be7 {[%clk 0:00:56.2]} 39.
Ne5 {[%clk 0:00:04.2]} 39... Nh2 {[%clk 0:00:45.7]} 40. Nc4 {[%clk 0:00:04.1]}
40... Bxg5 {[%clk 0:00:43.6]} 41. Be5+ {[%clk 0:00:04.3]} 41... Kd7 {[%clk
0:00:42.5]} 42. Bxh2 {[%clk 0:00:05.2]} 42... Bd8 {[%clk 0:00:40.4]} 43. Nd6
{[%clk 0:00:03.8]} 43... b6 {[%clk 0:00:38.6]} 44. e5 {[%clk 0:00:03.6]} 44...
Ke6 {[%clk 0:00:38.6]} 45. Kc3 {[%clk 0:00:04]} 45... g5 {[%clk 0:00:38.8]} 46.
Kd4 {[%clk 0:00:04.3]} 46... h5 {[%clk 0:00:39.1]} 47. Ke4 {[%clk 0:00:04.8]}
47... g4 {[%clk 0:00:35.1]} 48. Kf4 {[%clk 0:00:04.5]} 48... Bh4 {[%clk
0:00:33.9]} 49. Ne4 {[%clk 0:00:03.7]} 49... Be1 {[%clk 0:00:31.8]} 50. Bg3
{[%clk 0:00:04]} 50... Kd5 {[%clk 0:00:31.1]} 51. Bxe1 {[%clk 0:00:03.4]} 51...
Kd4 {[%clk 0:00:28.9]} 52. Bf2+ {[%clk 0:00:03.7]} 52... Kd5 {[%clk 0:00:28.4]}
53. c4+ {[%clk 0:00:04.6]} 53... Ke6 {[%clk 0:00:28.1]} 54. Bxb6 {[%clk
0:00:05.5]} 54... Ke7 {[%clk 0:00:27.6]} 55. Bxa5 {[%clk 0:00:05.8]} 55... Ke6
{[%clk 0:00:27.2]} 56. Be1 {[%clk 0:00:06.3]} 56... Ke7 {[%clk 0:00:27.1]} 57.
Bh4+ {[%clk 0:00:07.2]} 57... Ke6 {[%clk 0:00:27.5]} 58. Ng5+ {[%clk 0:00:07.5]}
58... Ke7 {[%clk 0:00:26.9]} 59. e6 {[%clk 0:00:07.4]} 59... Kd6 {[%clk
0:00:27]} 60. Kf5 {[%clk 0:00:07.4]} 60... Ke7 {[%clk 0:00:27.1]} 61. Ke5 {[%clk
0:00:07.1]} 61... Kd8 {[%clk 0:00:27.1]} 62. Kd6 {[%clk 0:00:06.6]} 1-0

[Event "*** SCC Grand Prix: Titled Tuesday Blitz"]
[Site "Chess.com"]
[Date "2020.07.21"]
[Round "2"]
[White "Azatic"]
[Black "viniciusrego"]
[Result "1-0"]
[WhiteElo "2554"]
[BlackElo "2278"]
[TimeControl "180+1"]
[EndTime "10:18:16 PDT"]
[Termination "Azatic won by resignation"]

1. e4 {[%clk 0:03:00.9]} 1... c5 {[%clk 0:02:59.7]} 2. Nf3 {[%clk 0:03:01.1]}
2... d6 {[%clk 0:02:59.9]} 3. d4 {[%clk 0:03:01.5]} 3... cxd4 {[%clk 0:03:00.8]}
4. Nxd4 {[%clk 0:03:02.4]} 4... Nf6 {[%clk 0:03:01.2]} 5. Nc3 {[%clk 0:03:03]}
5... g6 {[%clk 0:03:01.8]} 6. Be3 {[%clk 0:03:03]} 6... Bg7 {[%clk 0:03:02.4]}
7. f3 {[%clk 0:03:03.6]} 7... O-O {[%clk 0:03:03.3]} 8. Qd2 {[%clk 0:03:04]}
8... Nc6 {[%clk 0:03:04.2]} 9. Bc4 {[%clk 0:03:04.6]} 9... Ne5 {[%clk
0:03:04.4]} 10. Bb3 {[%clk 0:03:04.6]} 10... Bd7 {[%clk 0:03:05.1]} 11. O-O-O
{[%clk 0:03:02.2]} 11... Qa5 {[%clk 0:03:04.7]} 12. Kb1 {[%clk 0:02:58.6]} 12...
Rfc8 {[%clk 0:03:04.9]} 13. h4 {[%clk 0:02:58.8]} 13... b5 {[%clk 0:03:04]} 14.
h5 {[%clk 0:02:57]} 14... Nxh5 {[%clk 0:03:03.6]} 15. g4 {[%clk 0:02:54.6]}
15... Nf6 {[%clk 0:03:03]} 16. Bh6 {[%clk 0:02:36.6]} 16... Bxh6 {[%clk
0:03:02.3]} 17. Qxh6 {[%clk 0:01:55.7]} 17... Rxc3 {[%clk 0:03:01.4]} 18. bxc3
{[%clk 0:01:56.6]} 18... Qxc3 {[%clk 0:03:01.7]} 19. Ne2 {[%clk 0:01:57.1]}
19... Qxf3 {[%clk 0:02:58.7]} 20. Rdf1 {[%clk 0:01:47.5]} 20... Nexg4 {[%clk
0:02:36.6]} 21. Rxf3 {[%clk 0:01:39.6]} 21... Nxh6 {[%clk 0:02:36.3]} 22. Rxh6
{[%clk 0:01:40.5]} 22... Bg4 {[%clk 0:02:13.4]} 23. Rf2 {[%clk 0:01:25.7]} 23...
Kg7 {[%clk 0:02:11.8]} 24. Rh1 {[%clk 0:01:18.8]} 24... h5 {[%clk 0:01:52.1]}
25. Nc3 {[%clk 0:01:10.2]} 25... b4 {[%clk 0:01:44.1]} 26. Nd5 {[%clk
0:01:09.9]} 26... Nxe4 {[%clk 0:01:40.3]} 27. Rxf7+ {[%clk 0:01:08.4]} 27...
Kxf7 {[%clk 0:01:30.1]} 28. Nc7+ {[%clk 0:01:08.6]} 28... Kg7 {[%clk 0:01:20.1]}
29. Nxa8 {[%clk 0:01:08.6]} 29... Nd2+ {[%clk 0:01:20.6]} 30. Kc1 {[%clk
0:00:58.9]} 30... Nxb3+ {[%clk 0:01:21.5]} 31. axb3 {[%clk 0:00:55.8]} 31... Bf3
{[%clk 0:01:21.7]} 32. Re1 {[%clk 0:00:56.3]} 32... Bxa8 {[%clk 0:01:21.8]} 33.
Rxe7+ {[%clk 0:00:56.4]} 33... Kf6 {[%clk 0:01:20.2]} 34. Rxa7 {[%clk
0:00:56.9]} 34... Be4 {[%clk 0:01:19.4]} 35. Kd2 {[%clk 0:00:55.9]} 35... h4
{[%clk 0:01:19.3]} 36. Ke3 {[%clk 0:00:38.4]} 36... Bxc2 {[%clk 0:01:17]} 37.
Rb7 {[%clk 0:00:32.2]} 37... h3 {[%clk 0:01:06.9]} 38. Rxb4 {[%clk 0:00:15.5]}
38... g5 {[%clk 0:01:07.1]} 39. Kf2 {[%clk 0:00:13.1]} 39... Kf5 {[%clk
0:01:01]} 40. Kg3 {[%clk 0:00:12.2]} 40... d5 {[%clk 0:00:48.5]} 41. Kxh3 {[%clk
0:00:06.4]} 41... Bd1 {[%clk 0:00:48.6]} 42. Kg3 {[%clk 0:00:06]} 42... Ke5
{[%clk 0:00:47.1]} 43. Rb8 {[%clk 0:00:05.1]} 43... d4 {[%clk 0:00:46.4]} 44. b4
{[%clk 0:00:05.5]} 44... d3 {[%clk 0:00:45.2]} 45. Rd8 {[%clk 0:00:05.6]} 45...
Ke4 {[%clk 0:00:41.6]} 46. b5 {[%clk 0:00:04.8]} 46... Ba4 {[%clk 0:00:41.8]}
47. b6 {[%clk 0:00:04.7]} 47... Bc6 {[%clk 0:00:41.4]} 48. Rd6 {[%clk
0:00:04.3]} 48... Bb7 {[%clk 0:00:35.4]} 49. Kf2 {[%clk 0:00:04.8]} 49... g4
{[%clk 0:00:34.3]} 50. Rd7 {[%clk 0:00:05.2]} 50... g3+ {[%clk 0:00:28.3]} 51.
Kxg3 {[%clk 0:00:04.8]} 51... Ba6 {[%clk 0:00:20]} 52. Kf2 {[%clk 0:00:03.8]}
52... Ke5 {[%clk 0:00:16]} 53. b7 {[%clk 0:00:03.3]} 53... Bxb7 {[%clk
0:00:15.5]} 54. Rxb7 {[%clk 0:00:04.2]} 1-0

[Event "*** SCC Grand Prix: Titled Tuesday Blitz"]
[Site "Chess.com"]
[Date "2020.07.21"]
[Round "2"]
[White "ama18"]
[Black "baki83"]
[Result "0-1"]
[WhiteElo "2486"]
[BlackElo "2736"]
[TimeControl "180+1"]
[EndTime "10:18:18 PDT"]
[Termination "baki83 won by resignation"]

1. e4 {[%clk 0:02:18.9]} 1... c5 {[%clk 0:02:58]} 2. Nf3 {[%clk 0:02:18.8]} 2...
d6 {[%clk 0:02:57.9]} 3. d4 {[%clk 0:02:19.3]} 3... cxd4 {[%clk 0:02:58.8]} 4.
Nxd4 {[%clk 0:02:20.1]} 4... Nf6 {[%clk 0:02:58.8]} 5. Nc3 {[%clk 0:02:20.8]}
5... a6 {[%clk 0:02:59.2]} 6. h3 {[%clk 0:02:21.2]} 6... b5 {[%clk 0:02:55.2]}
7. Nd5 {[%clk 0:02:19.9]} 7... Bb7 {[%clk 0:02:54.2]} 8. Nxf6+ {[%clk 0:02:16]}
8... gxf6 {[%clk 0:02:55.1]} 9. Bd3 {[%clk 0:02:13.1]} 9... Nd7 {[%clk
0:02:45.9]} 10. a4 {[%clk 0:02:11.4]} 10... b4 {[%clk 0:02:37]} 11. Qe2 {[%clk
0:02:08.6]} 11... e6 {[%clk 0:02:33.1]} 12. Bd2 {[%clk 0:02:08.3]} 12... Qb6
{[%clk 0:02:28.5]} 13. Nb3 {[%clk 0:02:08.3]} 13... Rg8 {[%clk 0:02:20.7]} 14.
Rg1 {[%clk 0:02:06.4]} 14... a5 {[%clk 0:02:17.1]} 15. Bb5 {[%clk 0:02:05.4]}
15... Rc8 {[%clk 0:02:14.9]} 16. Be3 {[%clk 0:02:05.1]} 16... Qc7 {[%clk
0:02:12.8]} 17. Bd3 {[%clk 0:01:54.6]} 17... Ne5 {[%clk 0:02:11.3]} 18. Nd4
{[%clk 0:01:48.1]} 18... Nxd3+ {[%clk 0:01:57.7]} 19. cxd3 {[%clk 0:01:49]}
19... Ba6 {[%clk 0:01:51.3]} 20. Kd2 {[%clk 0:01:41]} 20... Qd7 {[%clk
0:01:17.6]} 21. g4 {[%clk 0:01:34.2]} 21... d5 {[%clk 0:01:11]} 22. exd5 {[%clk
0:01:30.7]} 22... Qxd5 {[%clk 0:01:09.9]} 23. Rgc1 {[%clk 0:01:27.6]} 23... Rd8
{[%clk 0:00:51.6]} 24. Rc6 {[%clk 0:00:54.9]} 24... Bb7 {[%clk 0:00:49]} 25. Rc4
{[%clk 0:00:43.8]} 25... b3 {[%clk 0:00:49]} 26. Rac1 {[%clk 0:00:35.6]} 26...
Bb4+ {[%clk 0:00:48.2]} 27. Rxb4 {[%clk 0:00:35.9]} 27... axb4 {[%clk
0:00:47.9]} 28. Nb5 {[%clk 0:00:36.8]} 28... Kf8 {[%clk 0:00:34.2]} 29. Bh6+
{[%clk 0:00:33]} 29... Ke7 {[%clk 0:00:34.1]} 30. Rc7+ {[%clk 0:00:14.7]} 30...
Rd7 {[%clk 0:00:33.6]} 31. Qe3 {[%clk 0:00:14.2]} 31... Rxc7 {[%clk 0:00:30.4]}
32. Nxc7 {[%clk 0:00:15.1]} 32... Qc6 {[%clk 0:00:29.5]} 33. Nb5 {[%clk
0:00:14.4]} 33... Rd8 {[%clk 0:00:26.5]} 34. g5 {[%clk 0:00:11.1]} 34... Qc2+
{[%clk 0:00:25.7]} 35. Ke1 {[%clk 0:00:10]} 35... Rxd3 {[%clk 0:00:20.4]} 36.
gxf6+ {[%clk 0:00:10.2]} 36... Kd7 {[%clk 0:00:20.5]} 37. Qc1 {[%clk 0:00:05.6]}
37... Qxc1+ {[%clk 0:00:19.5]} 38. Bxc1 {[%clk 0:00:06.5]} 38... Bf3 {[%clk
0:00:19]} 39. Bd2 {[%clk 0:00:06.1]} 39... Kc6 {[%clk 0:00:17.1]} 40. h4 {[%clk
0:00:06.5]} 40... h5 {[%clk 0:00:16.6]} 41. Na7+ {[%clk 0:00:04.4]} 41... Kb7
{[%clk 0:00:16.5]} 42. Nb5 {[%clk 0:00:05.3]} 42... Kb6 {[%clk 0:00:14.6]} 43.
Be3+ {[%clk 0:00:05.3]} 43... Kc6 {[%clk 0:00:14.2]} 44. Bd2 {[%clk 0:00:05.3]}
44... Kb7 {[%clk 0:00:14.2]} 45. a5 {[%clk 0:00:03.3]} 45... e5 {[%clk
0:00:13.8]} 46. a6+ {[%clk 0:00:02.7]} 46... Kxa6 {[%clk 0:00:13.4]} 47. Nc7+
{[%clk 0:00:03.6]} 47... Kb7 {[%clk 0:00:13.2]} 48. Ne8 {[%clk 0:00:02.6]} 48...
e4 {[%clk 0:00:12.3]} 49. Ng7 {[%clk 0:00:02.7]} 49... Kc6 {[%clk 0:00:12]} 50.
Nf5 {[%clk 0:00:02.9]} 50... Kd7 {[%clk 0:00:11.5]} 51. Ne3 {[%clk 0:00:02.1]}
51... Rd6 {[%clk 0:00:10.3]} 0-1

[Event "*** SCC Grand Prix: Titled Tuesday Blitz"]
[Site "Chess.com"]
[Date "2020.07.21"]
[Round "2"]
[White "MidnightFox"]
[Black "Gandrade2"]
[Result "1-0"]
[WhiteElo "2387"]
[BlackElo "2086"]
[TimeControl "180+1"]
[EndTime "10:18:18 PDT"]
[Termination "MidnightFox won on time"]

1. e4 {[%clk 0:03:00.9]} 1... c5 {[%clk 0:02:58.3]} 2. Nf3 {[%clk 0:02:56.6]}
2... g6 {[%clk 0:02:58.7]} 3. d4 {[%clk 0:02:56.5]} 3... cxd4 {[%clk 0:02:59.6]}
4. Qxd4 {[%clk 0:02:56.9]} 4... Nf6 {[%clk 0:02:59]} 5. Nc3 {[%clk 0:02:54.3]}
5... Nc6 {[%clk 0:02:58.5]} 6. Qa4 {[%clk 0:02:54.9]} 6... d6 {[%clk 0:02:58.8]}
7. e5 {[%clk 0:02:54.7]} 7... dxe5 {[%clk 0:02:58.9]} 8. Nxe5 {[%clk 0:02:55.6]}
8... Bd7 {[%clk 0:02:56.8]} 9. Nxd7 {[%clk 0:02:55.6]} 9... Nxd7 {[%clk
0:02:57.7]} 10. Bb5 {[%clk 0:02:55.4]} 10... Bg7 {[%clk 0:02:53.5]} 11. Bd2
{[%clk 0:02:48.3]} 11... O-O {[%clk 0:02:38.7]} 12. Bxc6 {[%clk 0:02:47]} 12...
bxc6 {[%clk 0:02:38.3]} 13. Qxc6 {[%clk 0:02:47.9]} 13... Rc8 {[%clk 0:02:31.8]}
14. Qe4 {[%clk 0:02:41.9]} 14... Nc5 {[%clk 0:02:18.8]} 15. Qe2 {[%clk
0:02:37.9]} 15... Qb6 {[%clk 0:02:12]} 16. Rb1 {[%clk 0:02:35.3]} 16... Ne6
{[%clk 0:01:56.9]} 17. O-O {[%clk 0:02:33.5]} 17... Nd4 {[%clk 0:01:51.6]} 18.
Qe4 {[%clk 0:02:28.9]} 18... Rfd8 {[%clk 0:01:26.6]} 19. Be3 {[%clk 0:02:16.9]}
19... Qb4 {[%clk 0:01:06.6]} 20. Rfe1 {[%clk 0:01:58.3]} 20... Rxc3 {[%clk
0:01:02.6]} 21. Bxd4 {[%clk 0:01:51.8]} 21... Rxd4 {[%clk 0:01:01.3]} 22. Qa8+
{[%clk 0:01:48.7]} 22... Bf8 {[%clk 0:00:53.8]} 23. bxc3 {[%clk 0:01:48.1]}
23... Qxc3 {[%clk 0:00:54.2]} 24. Rf1 {[%clk 0:01:45.8]} 24... e5 {[%clk
0:00:35.3]} 25. Rb8 {[%clk 0:01:43.1]} 25... Qc5 {[%clk 0:00:35.5]} 26. g3
{[%clk 0:01:38]} 26... Kg7 {[%clk 0:00:31.6]} 27. Rc8 {[%clk 0:01:24]} 27... Qa3
{[%clk 0:00:27.9]} 28. c3 {[%clk 0:01:13.8]} 28... Rd2 {[%clk 0:00:23.9]} 29. c4
{[%clk 0:01:06.8]} 29... Bc5 {[%clk 0:00:23.5]} 30. Rg8+ {[%clk 0:01:04.7]}
30... Kf6 {[%clk 0:00:23.4]} 31. Qe4 {[%clk 0:00:55.5]} 31... Rd4 {[%clk
0:00:16.6]} 32. Qe3 {[%clk 0:00:53]} 32... Rd1 {[%clk 0:00:13.5]} 33. Qxa3
{[%clk 0:00:42.3]} 33... Rxf1+ {[%clk 0:00:13.6]} 34. Kxf1 {[%clk 0:00:43.2]}
34... Bxa3 {[%clk 0:00:14.2]} 35. Rc8 {[%clk 0:00:35.5]} 35... Ke6 {[%clk
0:00:04.2]} 36. Rc7 {[%clk 0:00:31.2]} 36... a5 {[%clk 0:00:04.4]} 37. Ke2
{[%clk 0:00:29.5]} 37... h5 {[%clk 0:00:02.1]} 38. Kd3 {[%clk 0:00:28.6]} 38...
f5 {[%clk 0:00:02.7]} 39. Rc6+ {[%clk 0:00:27]} 39... Kf7 {[%clk 0:00:02.1]} 40.
c5 {[%clk 0:00:27.4]} 40... g5 {[%clk 0:00:01.2]} 41. Kc4 {[%clk 0:00:27.5]}
41... f4 {[%clk 0:00:01.6]} 42. Kd5 {[%clk 0:00:27.3]} 42... e4 {[%clk
0:00:01.4]} 43. Kxe4 {[%clk 0:00:26.1]} 43... fxg3 {[%clk 0:00:02.3]} 44. fxg3
{[%clk 0:00:25.9]} 44... h4 {[%clk 0:00:03.2]} 45. g4 {[%clk 0:00:23]} 45... Bc1
{[%clk 0:00:02.3]} 46. Kf5 {[%clk 0:00:19.9]} 46... Bf4 {[%clk 0:00:02.2]} 47.
h3 {[%clk 0:00:20.2]} 47... Ke7 {[%clk 0:00:02.5]} 48. Ra6 {[%clk 0:00:18.9]}
48... Bd2 {[%clk 0:00:03.1]} 49. Ra7+ {[%clk 0:00:18.4]} 49... Kd8 {[%clk
0:00:03.3]} 50. c6 {[%clk 0:00:18.6]} 50... Kc8 {[%clk 0:00:03.1]} 51. Ke6
{[%clk 0:00:17.1]} 51... Be3 {[%clk 0:00:03.5]} 52. Rxa5 {[%clk 0:00:15.8]}
52... Kc7 {[%clk 0:00:03.6]} 53. Kd5 {[%clk 0:00:15.4]} 53... Bd2 {[%clk
0:00:03.3]} 54. Rb5 {[%clk 0:00:15.5]} 1-0

[Event "*** SCC Grand Prix: Titled Tuesday Blitz"]
[Site "Chess.com"]
[Date "2020.07.21"]
[Round "2"]
[White "Grischuk"]
[Black "chesstrainer2042"]
[Result "1-0"]
[WhiteElo "3038"]
[BlackElo "2460"]
[TimeControl "180+1"]
[EndTime "10:18:19 PDT"]
[Termination "Grischuk won on time"]

1. e4 {[%clk 0:03:00.9]} 1... e5 {[%clk 0:02:57.7]} 2. Nf3 {[%clk 0:02:57.3]}
2... Nc6 {[%clk 0:02:57.3]} 3. Bb5 {[%clk 0:02:57]} 3... a6 {[%clk 0:02:57.4]}
4. Ba4 {[%clk 0:02:57]} 4... Nf6 {[%clk 0:02:58]} 5. O-O {[%clk 0:02:57.4]} 5...
Be7 {[%clk 0:02:57.4]} 6. Re1 {[%clk 0:02:54.2]} 6... b5 {[%clk 0:02:56.9]} 7.
Bb3 {[%clk 0:02:54.7]} 7... O-O {[%clk 0:02:57.4]} 8. d3 {[%clk 0:02:54.6]} 8...
d6 {[%clk 0:02:53.9]} 9. Bd2 {[%clk 0:02:55.1]} 9... Bg4 {[%clk 0:02:41.1]} 10.
c3 {[%clk 0:02:54.8]} 10... Na5 {[%clk 0:02:38.5]} 11. Bc2 {[%clk 0:02:55]}
11... c5 {[%clk 0:02:39.1]} 12. h3 {[%clk 0:02:55.4]} 12... Bh5 {[%clk
0:02:27.3]} 13. Bc1 {[%clk 0:02:54.3]} 13... Nc6 {[%clk 0:02:26.1]} 14. Nbd2
{[%clk 0:02:53.9]} 14... d5 {[%clk 0:02:16.9]} 15. Qe2 {[%clk 0:02:51.2]} 15...
d4 {[%clk 0:02:15.4]} 16. Nf1 {[%clk 0:02:47.4]} 16... dxc3 {[%clk 0:01:57.8]}
17. bxc3 {[%clk 0:02:48.3]} 17... b4 {[%clk 0:01:58.4]} 18. g4 {[%clk
0:02:23.8]} 18... Bg6 {[%clk 0:01:55.3]} 19. Bd2 {[%clk 0:02:19.5]} 19... Rc8
{[%clk 0:01:33.8]} 20. Bb3 {[%clk 0:02:11]} 20... h6 {[%clk 0:01:29.5]} 21. Ne3
{[%clk 0:02:07.8]} 21... Nh7 {[%clk 0:01:29.3]} 22. Nd5 {[%clk 0:01:21.8]} 22...
Bg5 {[%clk 0:01:28.7]} 23. Nxg5 {[%clk 0:01:16.5]} 23... Nxg5 {[%clk 0:01:28.1]}
24. Kh2 {[%clk 0:01:07.9]} 24... bxc3 {[%clk 0:01:18.2]} 25. Bxc3 {[%clk
0:01:08.8]} 25... Ne6 {[%clk 0:01:18.2]} 26. Qe3 {[%clk 0:01:05]} 26... Ncd4
{[%clk 0:01:17.7]} 27. Bxd4 {[%clk 0:00:49.3]} 27... cxd4 {[%clk 0:01:16.2]} 28.
Qg3 {[%clk 0:00:49.1]} 28... Qd6 {[%clk 0:01:11.2]} 29. Rf1 {[%clk 0:00:31.7]}
29... Nc5 {[%clk 0:00:59.6]} 30. Rfc1 {[%clk 0:00:12.3]} 30... Kh7 {[%clk
0:00:53.5]} 31. Bc4 {[%clk 0:00:09]} 31... f6 {[%clk 0:00:53.1]} 32. Rab1 {[%clk
0:00:08.9]} 32... Rb8 {[%clk 0:00:52]} 33. Kg2 {[%clk 0:00:07.6]} 33... Rxb1
{[%clk 0:00:49.5]} 34. Rxb1 {[%clk 0:00:08.5]} 34... Rb8 {[%clk 0:00:49.3]} 35.
Rxb8 {[%clk 0:00:08.1]} 35... Qxb8 {[%clk 0:00:49.1]} 36. h4 {[%clk 0:00:08.7]}
36... Qb7 {[%clk 0:00:30.6]} 37. Qf3 {[%clk 0:00:04.8]} 37... a5 {[%clk
0:00:24.2]} 38. g5 {[%clk 0:00:04.3]} 38... fxg5 {[%clk 0:00:11.9]} 39. hxg5
{[%clk 0:00:05.2]} 39... Qd7 {[%clk 0:00:04.8]} 40. gxh6 {[%clk 0:00:04.6]}
40... Ne6 {[%clk 0:00:03.1]} 41. hxg7 {[%clk 0:00:04.1]} 41... Kxg7 {[%clk
0:00:01.5]} 42. Qf6+ {[%clk 0:00:04]} 1-0